Cogmind - Beta 12 @@@ ROGUE MODE // 2023.10.17 @ 17:50:03 Player: art-hropod Result: Self-destructed Performance ------------- Evolutions (1) 500 Regions Visited (2) 400 Robots Destroyed (30) 150 Value Destroyed (713) 713 Prototype IDs (0) 0 Alien Tech Used (0) 0 Bonus (45) 45 TOTAL SCORE: 1808 Bonus ------- High Alert Combat Kills 45 Cogmind --------- Core Integrity 225/400 Matter 285/300 Energy 125/125 System Corruption 0% Temperature Cool (0) Movement Walking (190) Ox1 Location -9/Materials Parts ------- > --- POWER (1) -------- Light Ion Engine > --- PROPULSION (4) --- Aluminum Leg > --- UTILITY (2) ------ Heat Sink Small Storage Unit > --- WEAPON (2) ------- Spread Laser > --- INVENTORY (8) ---- Ion Engine Flight Unit Flight Unit Flight Unit Heat Sink Shield Generator Hacking Suite EMP Blaster Peak State ------------ > --- POWER ------------ Improved Ion Engine > --- PROPULSION ------- Aluminum Leg Aluminum Leg Aluminum Leg Aluminum Leg > --- UTILITY ---------- Heat Sink Small Storage Unit > --- WEAPON ----------- Spread Laser Improved Light Cannon > --- INVENTORY -------- Light Ion Engine Light Ion Engine Flight Unit Shield Generator Hacking Suite Medium Laser Medium Laser Grenade Launcher [Rating: 13] Favorites ----------- Power Ion Engine Engine Ion Engine Propulsion Aluminum Leg Leg Aluminum Leg Utility Small Storage Unit Device Heat Sink Storage Small Storage Unit Weapon Medium Laser Energy Gun Medium Laser Ballistic Gun Light Assault Rifle Ballistic Cannon Improved Light Cannon Launcher Grenade Launcher Build | -11 -10 -9 ------- Run | Jun Mat Mat Slots Evolved 2 | . . 2 Power . | . . . Propulsion 2 | . . 2 Utility . | . . . Weapon . | . . . Parts Attached 38 | 7 4 27 Power 6 | 2 . 4 Engine 6 | 2 . 4 Core . | . . . Reactor . | . . . Propulsion 11 | 2 2 7 Treads . | . . . Leg 11 | 2 2 7 Wheel . | . . . Hover . | . . . Flight . | . . . Utility 3 | 1 1 1 Device 2 | . 1 1 Storage 1 | 1 . . Processor . | . . . Hackware . | . . . Protection . | . . . Artifact . | . . . Weapon 18 | 2 1 15 Energy Gun 9 | 1 . 8 Energy Cannon . | . . . Ballistic Gun 4 | 1 1 2 Ballistic Cannon 2 | . . 2 Launcher 3 | . . 3 Special Weapon . | . . . Impact Weapon . | . . . Slashing Weapon . | . . . Piercing Weapon . | . . . Special Melee Weapon . | . . . Unidentified Prototypes . | . . . Parts Lost 7 | . . 7 Power 1 | . . 1 Propulsion 4 | . . 4 Utility . | . . . Weapon 2 | . . 2 Highest Loss Streak 3 | . . 3 To Critical Strikes . | . . . Average Slot Usage (%) 85 | . 95 80 Engine 11 | . 14 10 Leg 29 | . 28 30 Device 10 | . 9 10 Storage 11 | . 14 11 Energy Gun 12 | . 14 11 Ballistic Gun 7 | . 14 4 Ballistic Cannon 1 | . . 2 Naked Turns . | . . . Heaviest Build 20 | 13 15 20 Greatest Support 40 | 20 20 40 Greatest Overweight (x) 5 | . . 5 Average Overweight (x) . | . . . Largest Inventory Capacity 8 | 8 8 8 Average Capacity 7 | 6 8 8 Most Carried 8 | 6 8 8 Average Carried 7 | 3 7 7 Final Capacity 8 | 8 8 8 Final Carried 8 | 6 8 8 Class Distribution -------------------- 70% | Mutant 29% | Scavenger-Mutant Dominant Class ---------------- Mutant | -10/Materials Mutant | -9/Materials Resources | -11 -10 -9 ----------- Run | Jun Mat Mat Matter Collected 685 | 227 107 351 Remotely . | . . . Salvage Created 678 | . 261 417 Parts 61 | . 19 42 Haulers Intercepted . | . . . Recyclers Shooed . | . . . Parts Field Recycled . | . . . Retrieved Matter . | . . . Parts Self-Destructed . | . . . Prevented . | . . . Kills | -11 -10 -9 ------- Run | Jun Mat Mat Combat Hostiles Destroyed 25 | . 8 17 Guns 17 | . 8 9 Cannons 1 | . . 1 AOE 7 | . . 7 Classes Destroyed 7 | . 4 3 Builder 1 | . 1 . Operator 2 | . . 2 Watcher 2 | . 1 1 Swarmer 11 | . 3 8 Grunt 10 | . 5 5 Brawler 1 | . . 1 Sentry 3 | . . 3 Best Kill Streak 7 | . 5 7 Combat Bots Only 7 | . 5 7 Max Kills in Single Turn 4 | . 1 4 Gunslinging . | . . . Exploded 4 | . . 4 Melee . | . . . Uniques/NPCs Destroyed . | . . . Combat | -11 -10 -9 -------- Run | Jun Mat Mat Damage Taken 1133 | . 186 947 Core 191 | . 16 175 Absorbed by Shields . | . . . Core Remaining (%) 96 | 100 93 . Volleys Fired 62 | . 28 34 Largest 2 | . 2 2 Hottest 115 | . 70 115 Shots Fired 112 | . 56 56 Gun 104 | . 56 48 Cannon 6 | . . 6 Launcher 2 | . . 2 Special . | . . . Kinetic 49 | . 28 21 Thermal 61 | . 28 33 Explosive 2 | . . 2 Electromagnetic . | . . . Robot Hit Streak 31 | . 10 31 Robot Miss Streak 3 | . 2 3 Penetration Max . | . . . Secondary Targets 1 | . . 1 Max Gunslinging Chain 1 | . . 1 Shots Hit Robots 86 | . 38 48 Core Hits 57 | . 16 41 Critical Kills . | . . . Critical Parts Destroyed . | . . . Critical Strikes 5 | . 3 2 Burn 5 | . 3 2 Melee Attacks . | . . . Impact . | . . . Slashing . | . . . Piercing . | . . . Sneak Attacks . | . . . Combat Hostiles . | . . . Follow-up Attacks . | . . . Damage Inflicted 1430 | . 472 958 Guns 1067 | . 472 595 Cannons 59 | . . 59 Explosions 304 | . . 304 Melee . | . . . Ramming . | . . . Kinetic 475 | . 208 267 Thermal 651 | . 264 387 Explosive 304 | . . 304 Electromagnetic . | . . . Impact . | . . . Slashing . | . . . Piercing . | . . . Highest Corruption . | . . . Average Corruption . | . . . Corruption Purged . | . . . Corruption Blocked . | . . . Overload Shots . | . . . Overflow Damage . | . . . Projectiles . | . . . Explosions . | . . . Melee . | . . . Knockbacks . | . . . Impact . | . . . Kinetic . | . . . Secondary . | . . . Self-Inflicted Damage 1 | . . 1 Shots 1 | . . 1 Rammed . | . . . Targets Rammed . | . . . Kicked . | . . . Crushed . | . . . Highest Temperature 104 | . 104 27 Average Temperature 24 | . 38 12 Received Heat Transfer 429 | . 78 351 Siege Activations . | . . . Robots Corrupted . | . . . Combat Hostiles . | . . . Parts Fried . | . . . Impact Corruptions . | . . . Robots Melted . | . . . Combat Hostiles . | . . . Parts Melted 3 | . 3 . Heat Transferred 1928 | . 999 929 Parts Sabotaged . | . . . Parts Stolen . | . . . Parts Stripped . | . . . Power Chain Reactions . | . . . Missiles Intercepted . | . . . Alert | -11 -10 -9 ------- Run | Jun Mat Mat Peak Influence 530 | . 212 530 Initial 89 | . . 89 Average 234 | . 116 316 Maximum Alert Level 2 | . 1 2 Low Security (%) 45 | 100 80 22 Level 1 42 | . 19 58 Level 2 12 | . . 18 Level 3 . | . . . Level 4 . | . . . Level 5 . | . . . High Security . | . . . Max Security . | . . . Squads Dispatched 3 | . 1 2 Investigation . | . . . Extermination . | . . . Reinforcement 3 | . 1 2 Assault . | . . . Garrison . | . . . Intercept . | . . . Searches Triggered . | . . . Construction Impeded . | . . . Haulers Reinforced . | . . . Active Scanning Responses . | . . . Cargo Convoy Interrupts . | . . . Stealth | -11 -10 -9 --------- Run | Jun Mat Mat Distress Signals 2 | . 1 1 Communications Jammed . | . . . Distress Signals . | . . . Times Spotted 41 | . 13 28 Peak Tracking Total 8 | . 6 8 Tactical Retreats 3 | . . 3 Traps | -11 -10 -9 ------- Run | Jun Mat Mat Traps Triggered 4 | . . 4 Indirectly . | . . . Trap Hack Attempts . | . . . Triggered . | . . . Disarmed . | . . . Reprogrammed . | . . . Reused . | . . . Traps Extracted . | . . . Installed . | . . . Triggered . | . . . Machines | -11 -10 -9 ---------- Run | Jun Mat Mat Machines Disabled 1 | . . 1 Max in Single Turn 1 | . . 1 Machines Repaired . | . . . Machines Sabotaged . | . . . Overloaded Fab Kills . | . . . Hacking | -11 -10 -9 --------- Run | Jun Mat Mat Machines Accessed 4 | . 3 1 Terminals 4 | . 3 1 Fabricators . | . . . Repair Stations . | . . . Recycling Units . | . . . Scanalyzers . | . . . Garrison Access . | . . . Total Hacks 8 | . 6 2 Successful 2 | . 2 . Failed 6 | . 4 2 Catastrophic 1 | . 1 . Database Lockouts . | . . . Manual 8 | . 6 2 Terminals 8 | . 6 2 Fabricators . | . . . Repair Stations . | . . . Recycling Units . | . . . Scanalyzers . | . . . Garrison Access . | . . . Terminal Hacks . | . . . Fabricator Hacks . | . . . Repair Station Hacks . | . . . Recycling Unit Hacks . | . . . Scanalyzer . | . . . Garrison Access Hacks . | . . . Unauthorized Hacks 2 | . 2 . Terminals 2 | . 2 . Botnet 2 | . 2 . Fabricators . | . . . Repair Stations . | . . . Recycling Units . | . . . Scanalyzers . | . . . Garrison Access . | . . . Data Cores Recovered . | . . . Used . | . . . Hacking Detections 4 | . 3 1 Full Trace Events . | . . . Feedback Events . | . . . Feedback Blocked . | . . . Robot Schematics Acquired . | . . . Robots Built . | . . . Authchips . | . . . Time . | . . . Total Robot Build Rating . | . . . Part Schematics Acquired . | . . . Parts Built . | . . . Authchips . | . . . Time . | . . . Total Part Build Rating . | . . . Parts Repaired . | . . . Time . | . . . Parts Recycled . | . . . Recycled Matter . | . . . Retrieved Matter . | . . . Retrieved Components . | . . . Parts Scanalyzed . | . . . Part Schematics Acquired . | . . . Parts Damaged . | . . . Bothacking | -11 -10 -9 ------------ Run | Jun Mat Mat Used RIF Installer . | . . . Robots Hacked . | . . . Non-combat . | . . . Combat . | . . . Robot Hacks Applied . | . . . Relay Couplers Released . | . . . Fabnet Peak Effective % . | . . . Robots Rewired . | . . . Allies Hacked . | . . . Hacks Repelled . | . . . Allies | -11 -10 -9 -------- Run | Jun Mat Mat Total Allies . | . . . Largest Group . | . . . Highest-Rated Group . | . . . Highest-Rated Ally . | . . . Total Orders . | . . . Ally Attacks . | . . . Total Damage . | . . . Kills . | . . . Allies Corrupted . | . . . Allies Melted . | . . . Intel | -11 -10 -9 ------- Run | Jun Mat Mat Robot Analysis Total . | . . . Derelict Logs Recovered . | . . . Drone Launches . | . . . Drone Recoveries . | . . . Exploration | -11 -10 -9 ------------- Run | Jun Mat Mat Turns Passed 1131 | 95 312 724 Spaces Moved 661 | 69 163 429 Core 13 | 8 . 5 Treads . | . . . Legs 648 | 61 163 424 Wheels . | . . . Hover . | . . . Flight . | . . . Fastest Speed 50 | 50 120 100 Average Speed 120 | 111 120 122 Slowest Speed 300 | 120 120 300 Overloaded Moves . | . . . Propulsion Burnouts . | . . . Robots Hopped . | . . . Cave-ins Triggered . | . . . Exploration Rate (%) 26 | 4 34 42 Regions Visited 2 Branch Regions . Pre-discovered Areas . | . . . Known Exits Taken . | . . . Unknown Exits Taken 2 | 1 1 . Scrap Searched . | . . . Spaces Dug . | . . . Terrain Destroyed 12 | . . 12 Melee . | . . . Projectile . | . . . AOE 12 | . . 12 Terrain Rammed . | . . . Walls Destroyed . | . . . Machines Disabled . | . . . Actions | -11 -10 -9 --------- Run | Jun Mat Mat Total 880 | 85 227 568 Wait 75 | . 19 56 Move 659 | 68 162 429 Hop . | . . . Pick Up 27 | 10 7 10 Fast Attach 16 | 2 1 13 Attach 10 | 4 . 6 Detach 1 | . . 1 Swap 12 | 1 3 8 Drop 18 | . 7 11 Fire 62 | . 28 34 Melee . | . . . Ram . | . . . Kick . | . . . Crush . | . . . Escape Stasis . | . . . Rewire . | . . . Trap . | . . . Miscellaneous . | . . . Route ------- -11/Junkyard -10/Materials (discovered 2 exits: *Mat / [*Min]) -9/Materials (discovered 1 exit: [*Min]) History --------- Turn | Location | Event 5 | -11/Junkyard | Discovered new exit (range 14) 96 | -11/Junkyard | Entered Materials 219 | -10/Materials | Discovered new exit (range 7) 307 | -10/Materials | Build established: Mutant 379 | -10/Materials | Discovered new exit (range 15) 408 | -10/Materials | Entered another Materials area 408 | -9/Materials | Evolved 2 slots: Propulsion x2 578 | -9/Materials | Discovered new exit (range 16) 722 | -9/Materials | Build established: Scavenger-Mutant 755 | -9/Materials | Destroyed 7 combat bots 785 | -9/Materials | Lost 3 parts (2n1w) 954 | -9/Materials | Lost 3 parts (1p1n1w) 1055 | -9/Materials | Build established: Mutant 1132 | -9/Materials | Self-destructed Last Messages --------------- 00933_ Acquired Aluminum Leg. 00937_ Acquired Ion Engine. 00939_ Acquired Heat Sink. 00940_ Acquired 39 matter. 00956_ Acquired EMP Blaster. 00957_ Dropped Grenade Launcher. 00975_ Acquired 8 matter. 00980_ Acquired 4 matter. 00984_ Acquired 10 matter. 00991_ Acquired 34 matter. 01028_ K-01 Serf collects debris. 01069_ O-16 Technician: "IFF HANDSHAKE FAILED. SECURING TERMINAL." 01076_ ALERT: Hostiles spotted, dispatching reinforcements to Terminal M008. 01099_ O-16 Technician destroyed. 01102_ K-01 Serf collects debris. 01109_ R-06 Scavenger collects Lgt. Ion Engine. 01110_ K-01 Serf collects debris. 01122_ Aluminum Leg destroyed. Map ----- +----------------------------------------------------+ | ?????????????????????????????????????????????????? | | ?????????????????????????????????????????????????? | | ?????????????????????????????????????????????????? | | ?????????????????????????????????????????????????? | | ?????????????????????????????????????????????????? | | ?????????????????????????????????????????????????? | | ?????????????????????????????????????????????????? | | ?????????????????????????????????????????????????? | | ?????????????????????????????????????????????????? | | ?????????????????????????????????????????????????? | | ?????????????????????????????????????????????????? | | ???????????????????????????? ????????????????????? | | ???????????????????????????? #??????????????????? | | ??????????????????????????? #??????????????????? | | ??????????????????????????? #??????????????????? | | ??????????????????????????? #??????????????????? | | ??????????????????????????# #??????????????????? | | ??????????????????????????# #??????????????????? | | ??????????????????????????# #??????????????????? | | ??????????????????????????# #??????????????????? | | ????????????????##+####???# #??????????????????? | | ????????????????# ??# #??????????????????? | | ????????????????# ?## ######?????????????? | | ????????????????# # a?????????????? | | ????????????????# # #????#########? | | ????????????????# @ Y #????# # | | ????????????????# # #????# """# | | ????????????????# # #????# """# | | ????????????????# ?## ##?????? """# | | ????????????????# ??# #????????? # | | ????????????????#######???# ############+## | | ??????????????????????????# | | ????????????????????????### u % | | ????????????????????? | | ????????????????????## | | ?????????????????????# | | ?????????????????????+ ^ | | ?????????????????????# ##### | | ?????????????????????# #???? | | ?????????????????????# ##########+###+#### #???? | | ?????????????????????# ?????# #### ##??? | | ?????????????????????#??????# """ #" #??? | | ????????????????????????????# "T" #"" #??? | | ????????????????????????????# #|| #??? | | ????????????????????????????# #"" < #??? | | ????????????????????????????# """ #|| #??? | | ????????????????????????????# """ #"" #??? | | ????????????????????????????# ! """ #" #??? | | ????????????????????????????############## ##### | | ?????????????????????????????# # # | +----------------------------------------------------+ Best States ------------- Heat Dissipation 38 Energy Generation 12 Energy Capacity 265 Matter Stores 300 Matter Capacity 300 Sight Range 16 Terrain Scan Density 10 Evasion (%) 55 Item Schematics ----------------- None Robot Schematics ------------------ None Fabricated ------------ Nothing Alien Tech Used ----------------- None Achievements -------------- None Challenges ------------ None Game ------ Seed ThrusterSuperchargedDriver Manual? 0 Play Time 00:17:16 Cumulative 62.6 hours Start 2023.10.16 @ 11:09:40 End 2023.10.17 @ 17:50:03 Sessions 3 Manual Loads 0 Difficulty Rogue Special Mode None Game No. 83 Rogue 67 Adventurer 9 Explorer 7 Win Type - Total 4 Types 4/0/0/0/0/0/0/0/0 Lore% 18 Gallery% 42 Achievement% 31 Wizard Run 0 Options --------- ASCII 0 Keyboard 0 Movement Mouse Keybinds 0 Fullscreen 1 Font 32/Terminus Map View 63x52 Tactical HUD 1 Map Filters NONE Filters NONE Steam 1 RUN: f6dca72d-0b57-40c4-b3e2-8f7efd22affa